[Event "Late-Titled-Tuesday-Blitz-November-28-2023"]
[Site "Chess.com"]
[Date "2023.11.28"]
[Round "8"]
[White "kleber2007"]
[Black "kikoveiga"]
[Result "0-1"]
[WhiteElo "2390"]
[BlackElo "2580"]
[TimeControl "180+1"]
[EndTime "15:25:55 PST"]
[Termination "kikoveiga won by checkmate"]

1. Nf3 {[%clk 0:03:00.9]} 1... g6 {[%clk 0:02:59.7]} 2. d4 {[%clk 0:03:00.2]}
2... Bg7 {[%clk 0:03:00.6]} 3. e4 {[%clk 0:03:00.6]} 3... c6 {[%clk 0:02:59.6]}
4. c3 {[%clk 0:02:57.7]} 4... d5 {[%clk 0:03:00]} 5. exd5 {[%clk 0:02:57.5]}
5... cxd5 {[%clk 0:03:00]} 6. Bd3 {[%clk 0:02:57.7]} 6... Nc6 {[%clk 0:02:59.8]}
7. Bf4 {[%clk 0:02:57.3]} 7... Nf6 {[%clk 0:02:54.9]} 8. Nbd2 {[%clk 0:02:56]}
8... O-O {[%clk 0:02:54.1]} 9. h3 {[%clk 0:02:54.7]} 9... Re8 {[%clk 0:02:44.8]}
10. O-O {[%clk 0:02:53.9]} 10... Bf5 {[%clk 0:02:44.7]} 11. Bxf5 {[%clk
0:02:51.8]} 11... gxf5 {[%clk 0:02:45.6]} 12. Ne1 {[%clk 0:02:49]} 12... e6
{[%clk 0:02:44.7]} 13. Nd3 {[%clk 0:02:48.7]} 13... Ne4 {[%clk 0:02:41.4]} 14.
Nf3 {[%clk 0:02:34.3]} 14... b5 {[%clk 0:02:41.3]} 15. a3 {[%clk 0:02:20.2]}
15... a5 {[%clk 0:02:41.1]} 16. Rc1 {[%clk 0:02:14.2]} 16... Qb6 {[%clk
0:02:40]} 17. Nfe5 {[%clk 0:02:02.6]} 17... Rec8 {[%clk 0:02:34.6]} 18. Nd7
{[%clk 0:01:52]} 18... Qa7 {[%clk 0:02:29.6]} 19. N7c5 {[%clk 0:01:52.3]} 19...
b4 {[%clk 0:02:27.5]} 20. axb4 {[%clk 0:01:42]} 20... axb4 {[%clk 0:02:27.3]}
21. f3 {[%clk 0:01:39.2]} 21... bxc3 {[%clk 0:02:09.2]} 22. bxc3 {[%clk
0:01:32.2]} 22... Nxc3 {[%clk 0:02:06.2]} 23. Qe1 {[%clk 0:01:21.7]} 23... Bxd4+
{[%clk 0:02:04.1]} 24. Be3 {[%clk 0:01:22.3]} 24... Bg7 {[%clk 0:01:17]} 25.
Nxe6 {[%clk 0:01:02.8]} 25... d4 {[%clk 0:01:05.3]} 26. Nxg7 {[%clk 0:01:02.2]}
26... dxe3 {[%clk 0:01:05.4]} 27. Qxc3 {[%clk 0:00:52.8]} 27... Nd4 {[%clk
0:00:59.2]} 28. Qxc8+ {[%clk 0:00:36.6]} 28... Rxc8 {[%clk 0:00:57.9]} 29. Rxc8+
{[%clk 0:00:37.5]} 29... Kxg7 {[%clk 0:00:58.3]} 30. Nf4 {[%clk 0:00:30.7]}
30... e2 {[%clk 0:00:55.1]} 31. Nxe2 {[%clk 0:00:26.4]} 31... Nxe2+ {[%clk
0:00:53.1]} 32. Kh2 {[%clk 0:00:23.2]} 32... Qb7 {[%clk 0:00:47.1]} 33. Rc2
{[%clk 0:00:19]} 33... Qb8+ {[%clk 0:00:46.1]} 34. f4 {[%clk 0:00:18.8]} 34...
Nxf4 {[%clk 0:00:46.1]} 35. g3 {[%clk 0:00:18.8]} 35... Nh5 {[%clk 0:00:45.7]}
36. Rg2 {[%clk 0:00:18.1]} 36... Qe5 {[%clk 0:00:41.4]} 37. Rf3 {[%clk
0:00:17.5]} 37... Kf8 {[%clk 0:00:33]} 38. Rgf2 {[%clk 0:00:17.1]} 38... f4
{[%clk 0:00:33.6]} 39. gxf4 {[%clk 0:00:16.7]} 39... Qf5 {[%clk 0:00:34.2]} 40.
Rg2 {[%clk 0:00:16.2]} 40... Qe4 {[%clk 0:00:27.7]} 41. Rgf2 {[%clk 0:00:14.5]}
41... Ng7 {[%clk 0:00:21.9]} 42. f5 {[%clk 0:00:14.1]} 42... Nh5 {[%clk
0:00:22.4]} 43. f6 {[%clk 0:00:13.8]} 43... Qe5+ {[%clk 0:00:22.4]} 44. Kg2
{[%clk 0:00:13.8]} 44... Qg5+ {[%clk 0:00:21.9]} 45. Kh2 {[%clk 0:00:13.8]}
45... h6 {[%clk 0:00:20.3]} 46. Rf1 {[%clk 0:00:11.7]} 46... Qe5+ {[%clk
0:00:20]} 47. Kg2 {[%clk 0:00:11.6]} 47... Kg8 {[%clk 0:00:20.1]} 48. R1f2
{[%clk 0:00:11.5]} 48... Kh7 {[%clk 0:00:20.2]} 49. Kg1 {[%clk 0:00:10.8]} 49...
Kg6 {[%clk 0:00:20.7]} 50. Kg2 {[%clk 0:00:10.8]} 50... Nxf6 {[%clk 0:00:19.7]}
51. Rg3+ {[%clk 0:00:11]} 51... Kh7 {[%clk 0:00:19.6]} 52. Rgf3 {[%clk
0:00:11.1]} 52... Kg7 {[%clk 0:00:20.2]} 53. Rg3+ {[%clk 0:00:11]} 53... Kf8
{[%clk 0:00:20]} 54. Rgf3 {[%clk 0:00:11.5]} 54... Qe4 {[%clk 0:00:20.1]} 55.
Kg1 {[%clk 0:00:11.3]} 55... Qe1+ {[%clk 0:00:20.3]} 56. Kg2 {[%clk 0:00:11.4]}
56... Qe4 {[%clk 0:00:18.7]} 57. Kg1 {[%clk 0:00:10.4]} 57... Qg6+ {[%clk
0:00:19.3]} 58. Kf1 {[%clk 0:00:10.3]} 58... Ke7 {[%clk 0:00:17.9]} 59. Re3+
{[%clk 0:00:10.2]} 59... Ne4 {[%clk 0:00:18.6]} 60. Rfe2 {[%clk 0:00:08.9]}
60... f5 {[%clk 0:00:19.2]} 61. Ke1 {[%clk 0:00:08]} 61... Qg1# {[%clk
0:00:18.4]} 0-1

[Event "Late-Titled-Tuesday-Blitz-November-28-2023"]
[Site "Chess.com"]
[Date "2023.11.28"]
[Round "8"]
[White "VladimirBugayev"]
[Black "nindjaxx8"]
[Result "0-1"]
[WhiteElo "2310"]
[BlackElo "2448"]
[TimeControl "180+1"]
[EndTime "15:25:56 PST"]
[Termination "nindjaxx8 won on time"]

1. e4 {[%clk 0:03:00.9]} 1... e6 {[%clk 0:02:56.4]} 2. d4 {[%clk 0:03:00.2]}
2... d5 {[%clk 0:02:57.3]} 3. Bd3 {[%clk 0:03:00.4]} 3... c5 {[%clk 0:02:55.2]}
4. exd5 {[%clk 0:03:00.2]} 4... exd5 {[%clk 0:02:55.2]} 5. c3 {[%clk 0:03:00.2]}
5... Nf6 {[%clk 0:02:53.1]} 6. Nf3 {[%clk 0:03:00.5]} 6... cxd4 {[%clk 0:02:49]}
7. Nxd4 {[%clk 0:02:57.6]} 7... Bd6 {[%clk 0:02:49.9]} 8. O-O {[%clk 0:02:56.5]}
8... O-O {[%clk 0:02:47.2]} 9. h3 {[%clk 0:02:52.8]} 9... Nc6 {[%clk 0:02:42.5]}
10. Be3 {[%clk 0:02:33.2]} 10... Bd7 {[%clk 0:02:38.2]} 11. Nd2 {[%clk
0:02:32.5]} 11... Re8 {[%clk 0:02:36.2]} 12. N2b3 {[%clk 0:02:28.6]} 12... Bb8
{[%clk 0:02:35.8]} 13. Ne2 {[%clk 0:02:16.5]} 13... Ne5 {[%clk 0:02:30.7]} 14.
Nbd4 {[%clk 0:02:08.9]} 14... Ne4 {[%clk 0:02:07.9]} 15. Bb5 {[%clk 0:01:58.9]}
15... Bxb5 {[%clk 0:01:50.9]} 16. Nxb5 {[%clk 0:01:58.6]} 16... a6 {[%clk
0:01:51.3]} 17. Nbd4 {[%clk 0:01:56.9]} 17... Qc7 {[%clk 0:01:50.9]} 18. Bf4
{[%clk 0:01:51.3]} 18... Qb6 {[%clk 0:01:42.6]} 19. b3 {[%clk 0:01:41.9]} 19...
Bc7 {[%clk 0:01:24.9]} 20. Bh2 {[%clk 0:01:24.8]} 20... Rad8 {[%clk 0:01:19]}
21. Rc1 {[%clk 0:01:24.1]} 21... Bb8 {[%clk 0:01:17.4]} 22. Re1 {[%clk
0:01:11.4]} 22... Ng6 {[%clk 0:01:08.6]} 23. Bxb8 {[%clk 0:01:05.6]} 23... Rxb8
{[%clk 0:01:06.5]} 24. Ng3 {[%clk 0:01:01.5]} 24... Nxg3 {[%clk 0:01:00.2]} 25.
fxg3 {[%clk 0:01:01.5]} 25... Qa5 {[%clk 0:00:55.9]} 26. Qc2 {[%clk 0:00:56.7]}
26... h6 {[%clk 0:00:51.8]} 27. Rxe8+ {[%clk 0:00:53.5]} 27... Rxe8 {[%clk
0:00:49.8]} 28. Rf1 {[%clk 0:00:54.1]} 28... Ne5 {[%clk 0:00:44.8]} 29. Nf5
{[%clk 0:00:49.2]} 29... f6 {[%clk 0:00:41.6]} 30. Qd2 {[%clk 0:00:46.3]} 30...
Rc8 {[%clk 0:00:40.1]} 31. Nxh6+ {[%clk 0:00:44.9]} 31... gxh6 {[%clk
0:00:37.8]} 32. Rxf6 {[%clk 0:00:44.8]} 32... Qxc3 {[%clk 0:00:21.5]} 33. Qxh6
{[%clk 0:00:40.1]} 33... Qc1+ {[%clk 0:00:20.6]} 34. Qxc1 {[%clk 0:00:39.9]}
34... Rxc1+ {[%clk 0:00:21.5]} 35. Kf2 {[%clk 0:00:40.1]} 35... Rc2+ {[%clk
0:00:21.1]} 36. Ke3 {[%clk 0:00:39.4]} 36... Rxa2 {[%clk 0:00:21.6]} 37. Rb6
{[%clk 0:00:35.5]} 37... Rxg2 {[%clk 0:00:20.3]} 38. g4 {[%clk 0:00:30.6]} 38...
Nc6 {[%clk 0:00:10.3]} 39. Rxb7 {[%clk 0:00:27.4]} 39... Rg3+ {[%clk 0:00:10.4]}
40. Kf4 {[%clk 0:00:27.8]} 40... Rxh3 {[%clk 0:00:10.5]} 41. Rb6 {[%clk
0:00:26.9]} 41... Nd4 {[%clk 0:00:10.8]} 42. Ke5 {[%clk 0:00:24.3]} 42... Nxb3
{[%clk 0:00:07.3]} 43. Kxd5 {[%clk 0:00:19.9]} 43... a5 {[%clk 0:00:07.5]} 44.
Kc4 {[%clk 0:00:17.7]} 44... Nd2+ {[%clk 0:00:07.5]} 45. Kd5 {[%clk 0:00:13.8]}
45... a4 {[%clk 0:00:06.4]} 46. Ra6 {[%clk 0:00:13.6]} 46... a3 {[%clk
0:00:06.9]} 47. Ke6 {[%clk 0:00:12.9]} 47... Re3+ {[%clk 0:00:06.6]} 48. Kf6
{[%clk 0:00:12.1]} 48... Nc4 {[%clk 0:00:04.9]} 49. Kg6 {[%clk 0:00:09.8]} 49...
Kf8 {[%clk 0:00:04.4]} 50. Ra4 {[%clk 0:00:06.7]} 50... Nd6 {[%clk 0:00:02.2]}
51. g5 {[%clk 0:00:06.1]} 51... Ke7 {[%clk 0:00:02.8]} 52. Kg7 {[%clk
0:00:05.2]} 52... Rg3 {[%clk 0:00:02.7]} 53. g6 {[%clk 0:00:05.3]} 53... Nf5+
{[%clk 0:00:02.9]} 0-1

[Event "Late-Titled-Tuesday-Blitz-November-28-2023"]
[Site "Chess.com"]
[Date "2023.11.28"]
[Round "8"]
[White "PawnEatingZombie"]
[Black "JaackCamel"]
[Result "1-0"]
[WhiteElo "2199"]
[BlackElo "2046"]
[TimeControl "180+1"]
[EndTime "15:26:06 PST"]
[Termination "PawnEatingZombie won on time"]

1. e4 {[%clk 0:03:00.9]} 1... e6 {[%clk 0:02:58.9]} 2. Nf3 {[%clk 0:02:59.8]}
2... d5 {[%clk 0:02:58.4]} 3. e5 {[%clk 0:03:00.5]} 3... c5 {[%clk 0:02:58.1]}
4. b4 {[%clk 0:03:00.9]} 4... c4 {[%clk 0:02:55.3]} 5. a3 {[%clk 0:02:53.8]}
5... f6 {[%clk 0:02:51.6]} 6. d3 {[%clk 0:02:51]} 6... cxd3 {[%clk 0:02:45.6]}
7. Bxd3 {[%clk 0:02:50]} 7... fxe5 {[%clk 0:02:41.4]} 8. Nxe5 {[%clk 0:02:49.4]}
8... Nf6 {[%clk 0:02:40]} 9. O-O {[%clk 0:02:39.6]} 9... Nc6 {[%clk 0:02:36.6]}
10. Bb2 {[%clk 0:02:38.5]} 10... Nxe5 {[%clk 0:02:34.6]} 11. Bxe5 {[%clk
0:02:38]} 11... Bd6 {[%clk 0:02:33.8]} 12. Qe2 {[%clk 0:02:25.5]} 12... Bxe5
{[%clk 0:02:31.2]} 13. Qxe5 {[%clk 0:02:25]} 13... O-O {[%clk 0:02:31.1]} 14.
Nd2 {[%clk 0:02:20.9]} 14... Bd7 {[%clk 0:02:25.9]} 15. Rfe1 {[%clk 0:02:16.1]}
15... Ng4 {[%clk 0:02:22.4]} 16. Qh5 {[%clk 0:01:47.6]} 16... Nf6 {[%clk
0:02:21.6]} 17. Qh4 {[%clk 0:01:43.5]} 17... Qc7 {[%clk 0:02:05.2]} 18. Nf3
{[%clk 0:01:37.9]} 18... a6 {[%clk 0:01:51.3]} 19. Ng5 {[%clk 0:01:29.7]} 19...
h6 {[%clk 0:01:48.5]} 20. Nxe6 {[%clk 0:01:27.3]} 20... Bxe6 {[%clk 0:01:47.6]}
21. Rxe6 {[%clk 0:01:26.9]} 21... Qc3 {[%clk 0:01:31.2]} 22. Rae1 {[%clk
0:01:25.7]} 22... Ne4 {[%clk 0:01:30.6]} 23. R6xe4 {[%clk 0:01:03.9]} 23... dxe4
{[%clk 0:01:28.4]} 24. Qxe4 {[%clk 0:01:04.3]} 24... Rac8 {[%clk 0:01:00.9]} 25.
h4 {[%clk 0:00:49.3]} 25... Qf6 {[%clk 0:00:51.3]} 26. f3 {[%clk 0:00:25.3]}
26... Rce8 {[%clk 0:00:31.4]} 27. Qh7+ {[%clk 0:00:24.4]} 27... Kf7 {[%clk
0:00:31]} 28. Rxe8 {[%clk 0:00:17.2]} 28... Rxe8 {[%clk 0:00:25.8]} 29. h5
{[%clk 0:00:17.7]} 29... Ke7 {[%clk 0:00:25.2]} 30. Qe4+ {[%clk 0:00:12.9]}
30... Kd8 {[%clk 0:00:24.8]} 31. Qxb7 {[%clk 0:00:11.4]} 31... Qd4+ {[%clk
0:00:24.4]} 32. Kh2 {[%clk 0:00:06.1]} 32... Qe5+ {[%clk 0:00:23.1]} 33. Kg1
{[%clk 0:00:04.4]} 33... Qe1+ {[%clk 0:00:21.7]} 34. Kh2 {[%clk 0:00:04.7]}
34... Qh4+ {[%clk 0:00:21.2]} 35. Kg1 {[%clk 0:00:05.4]} 35... Re1+ {[%clk
0:00:21]} 36. Bf1 {[%clk 0:00:06.1]} 36... Qd4+ {[%clk 0:00:20.5]} 37. Kh2
{[%clk 0:00:05.7]} 37... Rxf1 {[%clk 0:00:20.4]} 38. Qa8+ {[%clk 0:00:03.4]}
38... Kd7 {[%clk 0:00:19.5]} 39. Qb7+ {[%clk 0:00:03.4]} 39... Kd6 {[%clk
0:00:19.1]} 40. Qxa6+ {[%clk 0:00:03.3]} 40... Ke7 {[%clk 0:00:18.1]} 41. Qxf1
{[%clk 0:00:04.2]} 41... Qe5+ {[%clk 0:00:17.6]} 42. Kg1 {[%clk 0:00:03.9]}
42... Qd4+ {[%clk 0:00:17.3]} 43. Qf2 {[%clk 0:00:04.2]} 43... Qd1+ {[%clk
0:00:17.6]} 44. Kh2 {[%clk 0:00:04.6]} 44... Qd6+ {[%clk 0:00:17.3]} 45. Kh3
{[%clk 0:00:04.1]} 45... Qe6+ {[%clk 0:00:17]} 46. Kh2 {[%clk 0:00:04.4]} 46...
Qe5+ {[%clk 0:00:16.4]} 47. g3 {[%clk 0:00:04.8]} 47... Qc3 {[%clk 0:00:16.2]}
48. Qe2+ {[%clk 0:00:04.5]} 48... Kf8 {[%clk 0:00:15.5]} 49. Qd3 {[%clk
0:00:05.1]} 49... Qe1 {[%clk 0:00:14.9]} 50. b5 {[%clk 0:00:03.9]} 50... Qf2+
{[%clk 0:00:14.6]} 51. Kh3 {[%clk 0:00:04]} 51... Qg1 {[%clk 0:00:14]} 52. Kg4
{[%clk 0:00:04.1]} 52... Qb1 {[%clk 0:00:12.9]} 53. Qd6+ {[%clk 0:00:03.6]}
53... Kg8 {[%clk 0:00:12.6]} 54. b6 {[%clk 0:00:03.9]} 54... Qxc2 {[%clk
0:00:12.4]} 55. Qd5+ {[%clk 0:00:02.6]} 55... Kh8 {[%clk 0:00:11.5]} 56. b7
{[%clk 0:00:03.3]} 56... Qb2 {[%clk 0:00:08.2]} 57. Qd8+ {[%clk 0:00:02.8]}
57... Kh7 {[%clk 0:00:08.3]} 58. b8=Q {[%clk 0:00:03.7]} 58... g5 {[%clk
0:00:01.1]} 59. Qe7+ {[%clk 0:00:02.8]} 1-0

[Event "Late-Titled-Tuesday-Blitz-November-28-2023"]
[Site "Chess.com"]
[Date "2023.11.28"]
[Round "8"]
[White "egnfanclub"]
[Black "DraningWaterHi"]
[Result "1/2-1/2"]
[WhiteElo "2331"]
[BlackElo "2173"]
[TimeControl "180+1"]
[EndTime "15:26:06 PST"]
[Termination "Game drawn by repetition"]

1. e4 {[%clk 0:03:00.9]} 1... e5 {[%clk 0:02:58.8]} 2. Nf3 {[%clk 0:02:59.4]}
2... Nc6 {[%clk 0:02:55]} 3. d4 {[%clk 0:02:58.4]} 3... exd4 {[%clk 0:02:55.9]}
4. Bc4 {[%clk 0:02:55.8]} 4... Nf6 {[%clk 0:02:56.2]} 5. O-O {[%clk 0:02:55.2]}
5... Nxe4 {[%clk 0:02:56.8]} 6. Nc3 {[%clk 0:02:55.5]} 6... Nxc3 {[%clk
0:02:53.7]} 7. bxc3 {[%clk 0:02:55.1]} 7... d5 {[%clk 0:02:54.3]} 8. Bb5 {[%clk
0:02:54.1]} 8... Be7 {[%clk 0:02:52.1]} 9. cxd4 {[%clk 0:02:54.2]} 9... O-O
{[%clk 0:02:51.7]} 10. Bxc6 {[%clk 0:02:54.6]} 10... bxc6 {[%clk 0:02:52.3]} 11.
Ne5 {[%clk 0:02:54.9]} 11... Bd7 {[%clk 0:02:51.7]} 12. Rb1 {[%clk 0:02:43.1]}
12... f6 {[%clk 0:02:35.5]} 13. Nxd7 {[%clk 0:02:38.6]} 13... Qxd7 {[%clk
0:02:36.4]} 14. Qf3 {[%clk 0:02:38.8]} 14... Bd6 {[%clk 0:02:31.6]} 15. Ba3
{[%clk 0:02:31.8]} 15... Rab8 {[%clk 0:02:28.8]} 16. Rb3 {[%clk 0:02:22.6]}
16... Rxb3 {[%clk 0:02:26.5]} 17. Qxb3 {[%clk 0:02:22.8]} 17... Re8 {[%clk
0:02:19.3]} 18. h3 {[%clk 0:02:05.5]} 18... Re2 {[%clk 0:02:14.5]} 19. Qb8+
{[%clk 0:01:53.1]} 19... Kf7 {[%clk 0:02:12]} 20. Qxa7 {[%clk 0:01:52.3]} 20...
Rxc2 {[%clk 0:02:10.9]} 21. Bc5 {[%clk 0:01:48]} 21... Bxc5 {[%clk 0:02:05]} 22.
dxc5 {[%clk 0:01:46.6]} 22... d4 {[%clk 0:02:04.9]} 23. Qa4 {[%clk 0:01:31]}
23... Rxc5 {[%clk 0:02:00.8]} 24. Rd1 {[%clk 0:01:31.1]} 24... Rd5 {[%clk
0:02:00.7]} 25. Qc4 {[%clk 0:01:29.9]} 25... d3 {[%clk 0:02:00.1]} 26. a4 {[%clk
0:01:29]} 26... Kf8 {[%clk 0:01:55.5]} 27. Rd2 {[%clk 0:01:28.9]} 27... Rd4
{[%clk 0:01:52.9]} 28. Qb3 {[%clk 0:01:26.3]} 28... c5 {[%clk 0:01:53.2]} 29. a5
{[%clk 0:01:21.8]} 29... Qc6 {[%clk 0:01:50.7]} 30. Rxd3 {[%clk 0:01:16.2]}
30... Rxd3 {[%clk 0:01:48.1]} 31. Qxd3 {[%clk 0:01:17.1]} 31... c4 {[%clk
0:01:49]} 32. Qc3 {[%clk 0:01:05.3]} 32... Qa6 {[%clk 0:01:44.9]} 33. Qb4+
{[%clk 0:01:02.9]} 33... Kf7 {[%clk 0:01:44.2]} 34. Qc5 {[%clk 0:01:02.7]} 34...
c6 {[%clk 0:01:42.1]} 35. h4 {[%clk 0:01:00.9]} 35... Qb5 {[%clk 0:01:40.9]} 36.
Qa3 {[%clk 0:00:41.3]} 36... Qb3 {[%clk 0:01:29.7]} 37. Qc5 {[%clk 0:00:40.9]}
37... c3 {[%clk 0:01:15.4]} 38. a6 {[%clk 0:00:36.5]} 38... c2 {[%clk
0:01:14.1]} 39. a7 {[%clk 0:00:36.1]} 39... Qb1+ {[%clk 0:01:11.5]} 40. Kh2
{[%clk 0:00:36.2]} 40... c1=Q {[%clk 0:01:11.7]} 41. Qxc1 {[%clk 0:00:35.1]}
41... Qxc1 {[%clk 0:01:11.9]} 42. a8=Q {[%clk 0:00:36]} 42... Qf4+ {[%clk
0:01:11.6]} 43. Kg1 {[%clk 0:00:36.2]} 43... Qc7 {[%clk 0:01:09.9]} 44. Qa2+
{[%clk 0:00:34.8]} 44... Kf8 {[%clk 0:01:08.2]} 45. Qc4 {[%clk 0:00:34]} 45...
c5 {[%clk 0:01:08.4]} 46. h5 {[%clk 0:00:33.1]} 46... Qe5 {[%clk 0:01:07.9]} 47.
h6 {[%clk 0:00:31.7]} 47... gxh6 {[%clk 0:01:07.3]} 48. Qg4 {[%clk 0:00:26.4]}
48... h5 {[%clk 0:01:04.1]} 49. Qc8+ {[%clk 0:00:26.1]} 49... Kg7 {[%clk
0:01:04.5]} 50. Qd7+ {[%clk 0:00:25.5]} 50... Kg6 {[%clk 0:01:03.6]} 51. Qd3+
{[%clk 0:00:25.3]} 51... Qf5 {[%clk 0:01:03.2]} 52. Qd8 {[%clk 0:00:20.1]} 52...
c4 {[%clk 0:01:02.4]} 53. Qe8+ {[%clk 0:00:20.2]} 53... Kg7 {[%clk 0:00:57.1]}
54. Qe7+ {[%clk 0:00:20]} 54... Kh6 {[%clk 0:00:55.3]} 55. Qf8+ {[%clk 0:00:20]}
55... Kg5 {[%clk 0:00:55.6]} 56. Qg8+ {[%clk 0:00:17.8]} 56... Qg6 {[%clk
0:00:55.9]} 57. Qxc4 {[%clk 0:00:18.2]} 57... Qb1+ {[%clk 0:00:56]} 58. Kh2
{[%clk 0:00:18]} 58... Qb8+ {[%clk 0:00:56.9]} 59. g3 {[%clk 0:00:18]} 59... Kg6
{[%clk 0:00:52.7]} 60. Qe4+ {[%clk 0:00:17.1]} 60... Kh6 {[%clk 0:00:50.1]} 61.
Qf5 {[%clk 0:00:15.5]} 61... Qe5 {[%clk 0:00:49.8]} 62. Qd7 {[%clk 0:00:14.5]}
62... h4 {[%clk 0:00:49]} 63. Qh3 {[%clk 0:00:12.6]} 63... Qg5 {[%clk
0:00:46.7]} 64. Qxh4+ {[%clk 0:00:12.3]} 64... Qxh4+ {[%clk 0:00:47]} 65. gxh4
{[%clk 0:00:13.2]} 65... Kh5 {[%clk 0:00:47.9]} 66. Kg3 {[%clk 0:00:13.7]} 66...
f5 {[%clk 0:00:48.5]} 67. f4 {[%clk 0:00:13.7]} 67... Kg6 {[%clk 0:00:47.9]} 68.
Kf3 {[%clk 0:00:13.7]} 68... Kf6 {[%clk 0:00:43.2]} 69. Ke3 {[%clk 0:00:13.7]}
69... Kg6 {[%clk 0:00:43]} 70. Kf3 {[%clk 0:00:13.9]} 70... Kf6 {[%clk
0:00:43.1]} 71. Ke3 {[%clk 0:00:14.2]} 71... Ke6 {[%clk 0:00:42.9]} 72. Kd4
{[%clk 0:00:14.2]} 72... Kd6 {[%clk 0:00:36]} 73. h5 {[%clk 0:00:14.6]} 73... h6
{[%clk 0:00:36.3]} 74. Kc4 {[%clk 0:00:14.2]} 74... Kc6 {[%clk 0:00:36.6]} 75.
Kd4 {[%clk 0:00:13.7]} 75... Kd6 {[%clk 0:00:37.1]} 76. Kc4 {[%clk 0:00:14]}
76... Kc6 {[%clk 0:00:37.2]} 77. Kd4 {[%clk 0:00:14.4]} 77... Kd6 {[%clk
0:00:37.7]} 1/2-1/2

[Event "Late-Titled-Tuesday-Blitz-November-28-2023"]
[Site "Chess.com"]
[Date "2023.11.28"]
[Round "8"]
[White "tantaan"]
[Black "noblerone"]
[Result "1-0"]
[WhiteElo "2384"]
[BlackElo "2478"]
[TimeControl "180+1"]
[EndTime "15:26:10 PST"]
[Termination "tantaan won on time"]

1. e4 {[%clk 0:03:00.9]} 1... c6 {[%clk 0:02:58.1]} 2. d4 {[%clk 0:03:00.5]}
2... d5 {[%clk 0:02:59]} 3. Nc3 {[%clk 0:03:00.7]} 3... dxe4 {[%clk 0:02:56]} 4.
Nxe4 {[%clk 0:03:01.6]} 4... Nf6 {[%clk 0:02:55.5]} 5. Nxf6+ {[%clk 0:03:01.3]}
5... exf6 {[%clk 0:02:56.4]} 6. c3 {[%clk 0:03:01.8]} 6... Bd6 {[%clk
0:02:56.2]} 7. Bd3 {[%clk 0:03:02.3]} 7... O-O {[%clk 0:02:53.7]} 8. Qc2 {[%clk
0:03:02.6]} 8... Re8+ {[%clk 0:02:52.9]} 9. Ne2 {[%clk 0:03:03.1]} 9... h5
{[%clk 0:02:53.5]} 10. Be3 {[%clk 0:03:03.1]} 10... Nd7 {[%clk 0:02:51.9]} 11.
O-O-O {[%clk 0:03:02.9]} 11... Nf8 {[%clk 0:02:51.5]} 12. Kb1 {[%clk 0:03:03.4]}
12... Be6 {[%clk 0:02:50.9]} 13. c4 {[%clk 0:03:03.4]} 13... b5 {[%clk
0:02:50.1]} 14. Nc3 {[%clk 0:03:01.3]} 14... bxc4 {[%clk 0:02:40.6]} 15. Be4
{[%clk 0:02:54.2]} 15... Qc7 {[%clk 0:02:35.8]} 16. g4 {[%clk 0:01:57.1]} 16...
h4 {[%clk 0:02:30.1]} 17. g5 {[%clk 0:01:55.1]} 17... fxg5 {[%clk 0:02:29.6]}
18. Bxg5 {[%clk 0:01:53]} 18... Rab8 {[%clk 0:02:24.3]} 19. Rhg1 {[%clk
0:01:46.1]} 19... Bxh2 {[%clk 0:02:21]} 20. Rg2 {[%clk 0:01:38.9]} 20... Bf4
{[%clk 0:02:18.7]} 21. Bf6 {[%clk 0:01:35.6]} 21... Bh6 {[%clk 0:02:12.1]} 22.
Bxg7 {[%clk 0:01:27.9]} 22... Bxg7 {[%clk 0:02:07.1]} 23. Rdg1 {[%clk
0:01:27.2]} 23... f5 {[%clk 0:01:52.9]} 24. Rxg7+ {[%clk 0:01:21.1]} 24... Qxg7
{[%clk 0:01:53.8]} 25. Rxg7+ {[%clk 0:01:20.4]} 25... Kxg7 {[%clk 0:01:54.7]}
26. Bxf5 {[%clk 0:01:18.9]} 26... Re7 {[%clk 0:01:42.7]} 27. Be4 {[%clk
0:01:06]} 27... Rf7 {[%clk 0:01:18.7]} 28. f3 {[%clk 0:00:59]} 28... h3 {[%clk
0:01:09.6]} 29. Qh2 {[%clk 0:00:59.3]} 29... Re8 {[%clk 0:01:07.9]} 30. Qg3+
{[%clk 0:00:48.8]} 30... Kh8 {[%clk 0:01:01.9]} 31. Ne2 {[%clk 0:00:46.3]} 31...
Rg7 {[%clk 0:00:59.9]} 32. Qh4+ {[%clk 0:00:45.5]} 32... Kg8 {[%clk 0:00:59.7]}
33. Nf4 {[%clk 0:00:45.5]} 33... Rg1+ {[%clk 0:00:46.4]} 34. Kc2 {[%clk
0:00:45.2]} 34... Bf7 {[%clk 0:00:30]} 35. Qxh3 {[%clk 0:00:37.8]} 35... Rd8
{[%clk 0:00:24.5]} 36. Qh2 {[%clk 0:00:26]} 36... Rg5 {[%clk 0:00:21.5]} 37. Ne2
{[%clk 0:00:24.7]} 37... Bd5 {[%clk 0:00:17.7]} 38. Qh4 {[%clk 0:00:23.7]} 38...
Bxe4+ {[%clk 0:00:15.7]} 39. fxe4 {[%clk 0:00:24.6]} 39... Rg2 {[%clk
0:00:14.4]} 40. Qxd8 {[%clk 0:00:23.1]} 40... Rxe2+ {[%clk 0:00:14.3]} 41. Kc3
{[%clk 0:00:23.6]} 41... Rxe4 {[%clk 0:00:15.2]} 42. Kxc4 {[%clk 0:00:23.6]}
42... Kf7 {[%clk 0:00:14.5]} 43. Qc7+ {[%clk 0:00:21.4]} 43... Kf6 {[%clk
0:00:10.6]} 44. Qxa7 {[%clk 0:00:20.5]} 44... Re6 {[%clk 0:00:11.5]} 45. Qa3
{[%clk 0:00:20.4]} 45... Nd7 {[%clk 0:00:11.5]} 46. Qf3+ {[%clk 0:00:20.7]}
46... Ke7 {[%clk 0:00:11.5]} 47. a4 {[%clk 0:00:20.8]} 47... Nb6+ {[%clk
0:00:11.6]} 48. Kb4 {[%clk 0:00:21.2]} 48... Nd5+ {[%clk 0:00:12.5]} 49. Kc5
{[%clk 0:00:21.2]} 49... Nc7 {[%clk 0:00:11.5]} 50. Qg3 {[%clk 0:00:17]} 50...
Na6+ {[%clk 0:00:11.8]} 51. Kc4 {[%clk 0:00:17.2]} 51... c5 {[%clk 0:00:12.7]}
52. Qg7+ {[%clk 0:00:15.8]} 52... Kd6 {[%clk 0:00:11.8]} 53. dxc5+ {[%clk
0:00:16.2]} 53... Nxc5 {[%clk 0:00:11.1]} 54. Qf8+ {[%clk 0:00:16.7]} 54... Kd7
{[%clk 0:00:10.3]} 55. Qxc5 {[%clk 0:00:16.9]} 55... Re4+ {[%clk 0:00:09.7]} 56.
Kb5 {[%clk 0:00:17.3]} 56... Re6 {[%clk 0:00:08.9]} 57. Qd5+ {[%clk 0:00:17.1]}
57... Kc7 {[%clk 0:00:07.2]} 58. Qxe6 {[%clk 0:00:18]} 1-0